fUSD/lending_fUSD_20240905
["ID","MTS","AMOUNT","RATE_DAILY","PERIOD"]
[337246127,1725547516047,450.55181734,0.00013927,2]
[337246128,1725547516451,450.55181734,0.00013942,2]
[337246129,1725547519914,270.75,0.00011985,2]
[337246130,1725547524358,737.6,0.00013733,2]
[337246131,1725547544047,201.24993197,0.0001386,2]
[337246132,1725547545688,161.34702618,0.00013488,2]
[337246133,1725547545991,161.34702618,0.00013503,2]
[337246134,1725547546313,161.34702618,0.00013518,2]
[337246135,1725547546638,161.34702618,0.00013533,2]
[337246136,1725547547013,161.34702618,0.00013548,2]
[337246137,1725547547340,161.34702618,0.00013563,2]
[337246138,1725547547682,161.34702618,0.00013578,2]
[337246139,1725547548012,161.34702618,0.00013594,2]
[337246140,1725547548323,161.34702618,0.00013609,2]
[337246141,1725547548655,161.34702618,0.00013624,2]
[337246142,1725547549052,55.51346869,0.00013639,2]
[337246143,1725547549076,105.83355749,0.00013639,2]
[337246144,1725547550023,161.34702618,0.00013654,2]
[337246145,1725547550422,161.34702618,0.00013669,2]
[337246146,1725547550724,161.34702618,0.00013684,2]
[337246147,1725547551065,161.34702618,0.000137,2]
[337246148,1725547551416,161.34702618,0.00013715,2]
[337246149,1725547551722,161.34702618,0.0001373,2]
[337246150,1725547552047,161.34702618,0.00013745,2]
[337246151,1725547552372,161.34702618,0.0001376,2]
[337246152,1725547552734,161.34702618,0.00013775,2]
[337246153,1725547553050,161.34702618,0.0001379,2]
[337246154,1725547553365,161.34702618,0.00013806,2]
[337246155,1725547553686,161.34702618,0.00013821,2]
[337246156,1725547554072,161.34702618,0.00013836,2]
[337246157,1725547554391,161.34702618,0.00013851,2]
[337246158,1725547554753,161.34702618,0.00013866,2]
[337246159,1725547555087,161.34702618,0.00013881,2]
[337246160,1725547555422,161.34702618,0.00013896,2]
[337246161,1725547555749,161.34702618,0.00013912,2]
[337246162,1725547556077,161.34702618,0.00013927,2]
[337246163,1725547556457,161.34702618,0.00013942,2]
[337246164,1725547572007,165.47941094,0.00013857,2]
[337246165,1725547585643,150.10381168,0.00013488,2]
[337246166,1725547587555,150.0,0.00013488,2]
[337246167,1725547591368,150.0,0.00013488,2]
[337246168,1725547591745,150.0,0.00013513,2]
[337246169,1725547592072,150.0,0.00013538,2]
[337246170,1725547592399,150.0,0.00013563,2]
[337246171,1725547592726,150.0,0.00013588,2]
[337246172,1725547593598,150.0,0.00013613,2]
[337246173,1725547594026,150.0,0.00013638,2]
[337246174,1725547594355,150.0,0.00013663,2]
[337246175,1725547594667,150.0,0.00013687,2]
[337246176,1725547594989,150.0,0.00013712,2]
[337246177,1725547595322,150.0,0.00013737,2]
[337246178,1725547595629,150.0,0.00013762,2]
[337246179,1725547595947,150.0,0.00013787,2]
[337246180,1725547596273,150.0,0.00013812,2]
[337246181,1725547596642,150.0,0.00013837,2]
[337246182,1725547596966,150.0,0.00013862,2]
[337246183,1725547597279,150.0,0.00013887,2]
[337246184,1725547597805,150.0,0.00013912,2]
[337246185,1725547598004,522.6892453,0.00013857,2]
[337246186,1725547598175,150.0,0.00013937,2]
[337246187,1725547614297,163.56,0.0001343,2]
[337246188,1725547618993,150.0,0.00013488,2]
[337246189,1725547622073,150.0,0.00013488,2]
[337246190,1725547622458,150.0,0.00013862,2]
[337246191,1725547625974,150.0,0.00013488,2]
[337246192,1725547628350,150.0,0.00013488,2]
[337246193,1725547628666,150.0,0.00013529,2]
[337246194,1725547629000,150.0,0.00013571,2]
[337246195,1725547629580,150.0,0.00013613,2]
[337246196,1725547629713,150.0,0.00013654,2]
[337246197,1725547630052,150.0,0.00013696,2]
[337246198,1725547630341,150.0,0.00013737,2]
[337246199,1725547630692,150.0,0.00013779,2]
[337246200,1725547630998,150.0,0.00013821,2]
[337246201,1725547631347,150.0,0.00013862,2]
[337246202,1725547631665,150.0,0.00013904,2]
[337246203,1725547636708,311.88,0.00010959,2]
[337246204,1725547645451,150.0,0.00013488,2]
[337246205,1725547645776,150.0,0.00013654,2]
[337246206,1725547646127,150.0,0.00013821,2]
[337246207,1725547653428,150.0,0.00013488,2]
[337246210,1725547776692,250.0,0.0001338,2]
[337246211,1725547804996,250.0,0.0001338,2]
[337246212,1725547805924,2000.0,0.00013942,2]
[337246213,1725547811561,200.0,0.00013942,2]
[337246236,1725547832355,-150.0,0.00013946,2]
[337246237,1725547832367,-450.55181734,0.00013957,2]
[337246239,1725547832378,-161.34702618,0.00013957,2]
[337246240,1725547832390,-150.0,0.00013962,2]
[337246241,1725547832401,-450.55181734,0.00013972,2]
[337246242,1725547832412,-161.34702618,0.00013972,2]
[337246243,1725547832424,-450.55181734,0.00013987,2]
[337246244,1725547832434,-161.34702618,0.00013987,2]
[337246245,1725547832445,-150.0,0.00013987,2]
[337246246,1725547832456,-150.0,0.00013987,2]
[337246247,1725547832469,-150.0,0.00013987,2]
[337246248,1725547832480,-267.04830184,0.00014002,2]
[337246249,1725547832494,-183.5035155,0.00014002,2]
[337246250,1725547832506,-161.34702618,0.00014002,2]
[337246251,1725547832518,-79.66309384,0.00014012,2]
[337246252,1725547832532,-70.33690616,0.00014012,2]
[337246253,1725547832543,-450.55181734,0.00014017,2]
[337246254,1725547832553,-161.34702618,0.00014017,2]
[337246255,1725547832565,-150.0,0.00014029,2]
[337246256,1725547832576,-450.55181734,0.00014033,2]
[337246257,1725547832609,-161.34702618,0.00014033,2]
[337246258,1725547832620,-150.0,0.00014037,2]
[337246259,1725547832631,-424.84431246,0.00014048,2]
[337246260,1725547832646,-25.70750488,0.00014048,2]
[337246261,1725547832657,-161.34702618,0.00014048,2]
[337246262,1725547832668,-150.0,0.00014062,2]
[337246263,1725547832679,-450.55181734,0.00014063,2]
[337246264,1725547832690,-161.34702618,0.00014063,2]
[337246265,1725547832701,-150.0,0.0001407,2]
[337246266,1725547832712,-450.55181734,0.00014078,2]
[337246267,1725547832723,-126.61933323,0.00014078,2]
[337246268,1725547832736,-34.72769295,0.00014078,2]
[337246269,1725547832747,-1596.11004066,0.00014081,2]
[337246270,1725547832761,-403.88995934,0.00014081,2]
[337246271,1725547832771,-200.0,0.00014081,2]
[337246272,1725547832782,-150.0,0.00014087,2]
[337246274,1725547832792,-450.55181734,0.00014093,2]
[337246276,1725547832803,-161.34702618,0.00014093,2]
[337246278,1725547832813,-450.55181734,0.00014108,2]
[337246280,1725547832824,-161.34702618,0.00014108,2]
[337246282,1725547832834,-150.0,0.00014112,2]
[337246284,1725547832844,-150.0,0.00014112,2]
[337246286,1725547832856,-53.63790744,0.00014123,2]
[337246288,1725547832869,-396.9139099,0.00014123,2]
[337246290,1725547832880,-161.34702618,0.00014123,2]
[337246292,1725547832890,-150.0,0.00014137,2]
[337246294,1725547832901,-450.55181734,0.00014139,2]
[337246296,1725547832911,-161.34702618,0.00014139,2]
[337246298,1725547832921,-450.55181734,0.00014154,2]
[337246300,1725547832931,-161.34702618,0.00014154,2]
[337246302,1725547832942,-150.0,0.00014154,2]
[337246304,1725547832952,-150.0,0.00014154,2]
[337246306,1725547832963,-150.0,0.00014154,2]
[337246308,1725547832973,-150.0,0.00014162,2]
[337246310,1725547832983,-450.55181734,0.00014169,2]
[337246312,1725547832994,-161.34702618,0.00014169,2]
[337246314,1725547833004,-450.55181734,0.00014184,2]
[337246316,1725547833015,-161.34702618,0.00014184,2]
[337246318,1725547833025,-150.0,0.00014187,2]
[337246320,1725547833035,-150.0,0.00014195,2]
[337246322,1725547833046,-450.55181734,0.00014199,2]
[337246324,1725547833056,-161.34702618,0.00014199,2]
[337246325,1725547833066,-150.0,0.00014212,2]
[337246326,1725547833076,-450.55181734,0.00014214,2]
[337246327,1725547833086,-161.34702618,0.00014214,2]
[337246328,1725547833102,-2000.0,0.00014222,2]
[337246329,1725547833113,-200.0,0.00014222,2]
[337246330,1725547833125,-450.55181734,0.00014229,2]
[337246331,1725547833136,-161.34702618,0.00014229,2]
[337246332,1725547833153,-150.0,0.00014237,2]
[337246333,1725547833166,-150.0,0.00014237,2]
[337246334,1725547833176,-150.0,0.00014237,2]
[337246335,1725547833187,-380.22493761,0.00014245,2]
[337246336,1725547833200,-70.32687973,0.00014245,2]
[337246337,1725547833209,-161.34702618,0.00014245,2]
[337246338,1725547833220,-270.75,0.00014249,2]
[337246339,1725547833230,-450.55181734,0.0001426,2]
[337246340,1725547833241,-161.34702618,0.0001426,2]
[337246341,1725547833252,-150.0,0.00014262,2]
[337246342,1725547833262,-21.38008112,0.00014275,2]
[337246343,1725547833275,-357.46371413,0.00014275,2]
[337246344,1725547833626,-71.70802209,0.00014275,2]
[337246345,1725547833641,-161.34702618,0.00014275,2]
[337246346,1725547833651,-150.0,0.00014279,2]
[337246347,1725547833660,-150.0,0.00014287,2]
[337246348,1725547833670,-67.65397173,0.0001429,2]
[337246349,1725547833682,-382.89784561,0.0001429,2]
[337246350,1725547833692,-161.34702618,0.0001429,2]
[337246351,1725547833701,-6000.0,0.00014302,30]
[337246352,1725547833711,-450.55181734,0.00014305,2]
[337246353,1725547833721,-161.34702618,0.00014305,2]
[337246354,1725547833731,-150.0,0.00014312,2]
[337246355,1725547833740,-450.55181734,0.0001432,2]
[337246356,1725547833750,-161.34702618,0.0001432,2]
[337246357,1725547833760,-150.0,0.0001432,2]
[337246358,1725547833769,-150.0,0.0001432,2]
[337246359,1725547833780,-450.55181734,0.00014335,2]
[337246360,1725547833790,-161.34702618,0.00014335,2]
[337246361,1725547833800,-150.0,0.00014337,2]
[337246362,1725547833810,-450.55181734,0.00014351,2]
[337246363,1725547833821,-161.34702618,0.00014351,2]
[337246364,1725547833831,-150.0,0.00014362,2]
[337246365,1725547833841,-150.0,0.00014362,2]
[337246366,1725547833852,-2000.0,0.00014364,2]
[337246367,1725547833862,-200.0,0.00014364,2]
[337246368,1725547833873,-450.55181734,0.00014366,2]
[337246369,1725547833883,-161.34702618,0.00014366,2]
[337246370,1725547833893,-450.55181734,0.00014381,2]
[337246371,1725547833904,-161.34702618,0.00014381,2]
[337246372,1725547833914,-150.0,0.00014387,2]
[337246373,1725547833924,-450.55181734,0.00014396,2]
[337246374,1725547833933,-161.34702618,0.00014396,2]
[337246375,1725547833943,-422.04,0.000144,2]
[337246376,1725547833953,-511.56398357,0.000144,2]
[337246377,1725547833967,-20.63601643,0.000144,2]
[337246378,1725547833976,-532.2,0.000144,2]
[337246379,1725547833986,-75.58398357,0.00014404,2]
[337246380,1725547833998,-74.41601643,0.00014404,2]
[337246381,1725547834007,-218.99874684,0.00014411,2]
[337246382,1725547834020,-231.5530705,0.00014411,2]
[337246383,1725547834030,-161.34702618,0.00014411,2]
[337246384,1725547834041,-150.0,0.00014412,2]
[337246385,1725547834052,-450.55181734,0.00014426,2]
[337246386,1725547834062,-161.34702618,0.00014426,2]
[337246387,1725547834073,-150.0,0.00014437,2]
[337246388,1725547834082,-450.55181734,0.00014441,2]
[337246389,1725547834092,-161.34702618,0.00014441,2]
[337246390,1725547834115,-150.0,0.00014445,2]
[337246391,1725547834126,-181.97634568,0.00014456,2]
[337246392,1725547834152,-268.57547166,0.00014456,2]
[337246393,1725547834163,-161.34702618,0.00014456,2]
[337246394,1725547834174,-150.0,0.00014462,2]
[337246395,1725547834187,-450.55181734,0.00014472,2]
[337246396,1725547834198,-122.28137043,0.00014472,2]
[337246397,1725547834212,-39.06565575,0.00014472,2]
[337246398,1725547834223,-450.55181734,0.00014487,2]
[337246399,1725547834232,-161.34702618,0.00014487,2]
[337246400,1725547834245,-150.0,0.00014487,2]
[337246401,1725547834257,-150.0,0.00014487,2]
[337246402,1725547834268,-150.0,0.00014487,2]
[337246403,1725547834279,-450.55181734,0.00014502,2]
[337246404,1725547834289,-129.06271264,0.00014502,2]
[337246405,1725547834304,-32.28431354,0.00014502,2]
[337246406,1725547834317,-2000.0,0.00014508,2]
[337246407,1725547834327,-200.0,0.00014508,2]
[337246408,1725547834338,-150.0,0.00014512,2]
[337246409,1725547834348,-450.55181734,0.00014517,2]
[337246410,1725547834359,-161.34702618,0.00014517,2]
[337246411,1725547834371,-253.219149,0.00014521,2]
[337246412,1725547834382,-150.0,0.00014528,2]
[337246413,1725547834392,-450.55181734,0.00014532,2]
[337246414,1725547834404,-161.34702618,0.00014532,2]
[337246415,1725547834414,-150.0,0.00014537,2]
[337246416,1725547834425,-450.55181734,0.00014547,2]
[337246417,1725547834436,-161.34702618,0.00014547,2]
[337246418,1725547834446,-150.0,0.00014562,2]
[337246419,1725547834456,-450.55181734,0.00014562,2]
[337246420,1725547834468,-161.34702618,0.00014562,2]
[337246421,1725547834478,-165.47941094,0.00014568,2]
[337246422,1725547834488,-150.0,0.0001457,2]
[337246423,1725547834499,-450.55181734,0.00014578,2]
[337246424,1725547834510,-161.34702618,0.00014578,2]
[337246425,1725547834521,-150.0,0.00014587,2]
[337246426,1725547834532,-450.55181734,0.00014593,2]
[337246427,1725547834542,-161.34702618,0.00014593,2]
[337246428,1725547834552,-450.55181734,0.00014608,2]
[337246429,1725547834563,-161.34702618,0.00014608,2]
[337246430,1725547834573,-150.0,0.00014612,2]
[337246431,1725547834583,-150.0,0.00014612,2]
[337246432,1725547834593,-150.0,0.00014612,2]
[337246433,1725547834617,-450.55181734,0.00014623,2]
[337246434,1725547834627,-161.34702618,0.00014623,2]
[337246435,1725547834638,-395.04,0.00014625,2]
[337246436,1725547834649,-150.0,0.00014637,2]
[337246437,1725547834659,-450.55181734,0.00014638,2]
[337246438,1725547834670,-161.34702618,0.00014638,2]
[337246439,1725547834680,-806.75274336,0.00014643,2]
[337246440,1725547834690,-450.55181734,0.00014653,2]
[337246441,1725547834700,-161.34702618,0.00014653,2]
[337246442,1725547834710,-150.0,0.00014653,2]
[337246443,1725547834720,-150.0,0.00014653,2]
[337246444,1725547834730,-150.0,0.00014662,2]
[337246445,1725547834741,-450.55181734,0.00014668,2]
[337246446,1725547834752,-161.34702618,0.00014668,2]
[337246447,1725547834763,-450.55181734,0.00014684,2]
[337246448,1725547834773,-161.34702618,0.00014684,2]
[337246449,1725547834784,-150.0,0.00014687,2]
[337246450,1725547834795,-150.0,0.00014695,2]
[337246451,1725547834806,-450.55181734,0.00014699,2]
[337246452,1725547834816,-161.34702618,0.00014699,2]
[337246453,1725547834826,-150.0,0.00014712,2]
[337246454,1725547834836,-450.55181734,0.00014714,2]
[337246455,1725547834847,-161.34702618,0.00014714,2]
[337246456,1725547834857,-450.55181734,0.00014729,2]
[337246457,1725547834868,-161.34702618,0.00014729,2]
[337246458,1725547834878,-150.0,0.00014737,2]
[337246459,1725547834888,-150.0,0.00014737,2]
[337246460,1725547834898,-450.55181734,0.00014744,2]
[337246461,1725547834908,-161.34702618,0.00014744,2]
[337246462,1725547834918,-450.55181734,0.00014759,2]
[337246463,1725547834928,-161.34702618,0.00014759,2]
[337246464,1725547834938,-150.0,0.00014762,2]
[337246465,1725547834948,-150.0,0.00014767,2]
[337246466,1725547834958,-450.55181734,0.00014774,2]
[337246467,1725547834968,-161.34702618,0.00014774,2]
[337246468,1725547834977,-150.0,0.00014778,2]
[337246469,1725547834987,-150.0,0.00014786,2]
[337246470,1725547834997,-450.55181734,0.0001479,2]
[337246471,1725547835008,-161.34702618,0.0001479,2]
[337246472,1725547835018,-1004.21,0.00014799,2]
[337246473,1725547835027,-1004.21,0.00014799,2]
[337246474,1725547835039,-1004.21,0.00014799,2]
[337246475,1725547835049,-450.55181734,0.00014805,2]
[337246476,1725547835060,-161.34702618,0.00014805,2]
[337246477,1725547835069,-150.0,0.00014811,2]
[337246478,1725547835079,-450.55181734,0.0001482,2]
[337246479,1725547835089,-161.34702618,0.0001482,2]
[337246480,1725547835105,-150.0,0.0001482,2]
[337246481,1725547835119,-150.0,0.0001482,2]
[337246482,1725547835130,-450.55181734,0.00014835,2]
[337246483,1725547835142,-161.34702618,0.00014835,2]
[337246484,1725547835153,-150.0,0.00014836,2]
[337246485,1725547835164,-3000.0,0.0001485,2]
[337246486,1725547835175,-450.55181734,0.0001485,2]
[337246487,1725547835186,-161.34702618,0.0001485,2]
[337246488,1725547835195,-150.0,0.00014861,2]
[337246489,1725547835206,-150.0,0.00014861,2]
[337246490,1725547835216,-450.55181734,0.00014865,2]
[337246491,1725547835227,-161.34702618,0.00014865,2]
[337246492,1725547835237,-295.18938868,0.0001487,2]
[337246501,1725547838303,-709.02061132,0.0001487,2]
[337246504,1725547838313,-1004.21,0.00014879,2]
[337246507,1725547838323,-450.55181734,0.0001488,2]
[337246509,1725547838332,-161.34702618,0.0001488,2]
[337246512,1725547838341,-150.0,0.00014886,2]
[337246515,1725547838351,-155.95248363,0.00014888,2]
[337246516,1725547838364,-8594.2037,0.00014889,2]
[337246517,1725547838380,-155.95248361,0.0001489,2]
[337246519,1725547838389,-155.95248361,0.00014891,2]
[337246520,1725547838399,-155.95248361,0.00014893,2]
[337246521,1725547838408,-155.95248361,0.00014894,2]
[337246522,1725547838418,-450.55181734,0.00014895,2]
[337246523,1725547838428,-161.34702618,0.00014895,2]
[337246524,1725547838438,-155.95248361,0.00014896,2]
[337246525,1725547838448,-155.95248361,0.00014897,2]
[337246526,1725547838458,-15175.2018,0.00014898,2]
[337246527,1725547838468,-155.95248361,0.00014899,2]
[337246528,1725547838478,-28289.8002,0.00014899,2]
[337246529,1725547838488,-345.19613274,0.000149,2]
[337246530,1725547838503,-735.00386726,0.000149,2]
[337246531,1725547838513,-29.14071066,0.000149,2]
[337246532,1725547838525,-126.81177295,0.000149,2]
[337246533,1725547838534,-359.87378719,0.000149,2]
[337246534,1725547838544,-150.0,0.00014903,2]
[337246535,1725547838555,-450.55181734,0.00014911,2]
[337246536,1725547838565,-161.34702618,0.00014911,2]
[337246537,1725547838574,-150.0,0.00014911,2]
[337246538,1725547838584,-450.55181734,0.00014926,2]
[337246539,1725547838594,-161.34702618,0.00014926,2]
[337246543,1725547838781,-150.0,0.00014936,2]
[337246545,1725547838791,-450.55181734,0.00014941,2]
[337246547,1725547838800,-161.34702618,0.00014941,2]
[337246549,1725547838809,-150.0,0.00014945,2]
[337246551,1725547838819,-450.55181734,0.00014956,2]
[337246552,1725547838828,-161.34702618,0.00014956,2]
[337246553,1725547838837,-2900.787,0.00014957,2]
[337246554,1725547838847,-150.0,0.00014961,2]
[337246555,1725547838861,-450.55181734,0.00014971,2]
[337246556,1725547838870,-161.34702618,0.00014971,2]
[337246557,1725547838879,-500.0,0.00014973,2]
[337246558,1725547838888,-500.0,0.00014973,2]
[337246559,1725547838897,-848.512,0.00014973,2]
[337246560,1725547838907,-150.10966717,0.00014986,2]
[337246561,1725547838916,-151.27170323,0.00014986,2]
[337246562,1725547838925,-150.13072746,0.00014986,2]
[337246563,1725547838935,-150.0,0.00014986,2]
[337246564,1725547838944,-150.12448472,0.00014986,2]
[337246565,1725547838953,-150.0,0.00014986,2]
[337246566,1725547838962,-150.0,0.00014986,2]
[337246567,1725547838972,-150.10518586,0.00014986,2]
[337246568,1725547838981,-450.55181734,0.00014986,2]
[337246569,1725547838990,-161.34702618,0.00014986,2]
[337246570,1725547838999,-1004.21,0.00014988,2]
[337246571,1725547839009,-1338.42,0.00014988,2]
[337246572,1725547839018,-1945.44,0.00014988,2]
[337246573,1725547839027,-467.80915268,0.00014988,2]
[337246574,1725547839039,-1142.05,0.00014988,2]
[337246575,1725547839049,-16158.5867173,0.00014988,3]
[337246576,1725547839058,-12429.6820902,0.00014989,3]
[337246577,1725547839068,-11578.28320764,0.00014989,3]
[337246578,1725547839087,-2458.05672293,0.00014989,3]
[337246579,1725547839114,-5772.58092822,0.00014989,3]
[337246584,1725547840282,-1907.99778019,0.00014989,3]
[337246585,1725547840294,-1370.37733886,0.00014989,3]
[337246586,1725547840305,-500.0,0.00014989,3]
[337246588,1725547840317,-681.43362743,0.00014989,3]
[337246589,1725547840332,-60751.78257675,0.00014989,3]
[337246590,1725547840344,-9970.48864548,0.00014989,3]
[337246591,1725547840360,-538.89552243,0.00014989,3]
[337246592,1725547840414,-6496.46948832,0.00014989,3]
[337246593,1725547840426,-511.70455756,0.00014989,3]
[337246594,1725547840438,-1986.15335335,0.00014989,3]
[337246595,1725547840746,-406.1813045,0.00014989,3]
[337246596,1725547840757,-818.06656972,0.00014989,3]
[337246603,1725547845185,-342.6829733,0.00014988,2]
[337246604,1725547845245,-157.3170267,0.00014988,2]
[337246605,1725547845254,-28967.6829733,0.00014989,3]
[337246606,1725547845302,-4123.86206575,0.00014989,3]
[337246607,1725547845315,-292.35005528,0.00014989,3]
[337246608,1725547845363,-1261.31414876,0.00014989,3]
[337246633,1725547846415,-500.0,0.00014988,2]
[337246635,1725547846425,-135.84286283,0.00014989,3]
[337246637,1725547846575,-595.875,0.00014989,3]
[337246638,1725547846587,-498.62,0.00014989,3]
[337246639,1725547846747,-930.18672918,0.00014989,3]
[337246640,1725547846759,-36084.758633,0.00014989,3]
[337246641,1725547846771,-46433.12669752,0.00014989,3]
[337246642,1725547846780,-1004.21,0.00014989,2]
[337246643,1725547846789,-1004.21,0.00014989,2]
[337246644,1725547846800,-1004.21,0.00014989,2]
[337246645,1725547846810,-821.86,0.00014992,2]
[337246646,1725547846819,-873.66,0.00014992,2]
[337246647,1725547846829,-2810.66,0.00014992,2]
[337246648,1725547846838,-500.0,0.00014992,2]
[337246649,1725547846847,-2335.98,0.00014992,2]
[337246651,1725547846857,-500.0,0.00014992,2]
[337246653,1725547846866,-500.0,0.00014992,2]
[337246655,1725547846876,-2500.73,0.00014992,2]
[337246657,1725547846885,-1715.47,0.00014992,2]
[337246658,1725547846894,-674.27,0.00014992,2]
[337246660,1725547846903,-1068.69,0.00014992,2]
[337246662,1725547846913,-1457.23,0.00014992,2]
[337246664,1725547846923,-1630.6,0.00014992,2]
[337246666,1725547846932,-1372.26,0.00014992,2]
[337246668,1725547846941,-1350.18,0.00014992,2]
[337246669,1725547846950,-2108.79,0.00014992,2]
[337246671,1725547846959,-1142.05,0.00014992,2]
[337246673,1725547846968,-2203.69,0.00014992,2]
[337246675,1725547846977,-500.0,0.00014992,2]
[337246677,1725547846986,-500.0,0.00014992,2]
[337246679,1725547846997,-446.01,0.00014992,2]
[337246681,1725547847008,-6122.23,0.00014992,2]
[337246683,1725547847017,-500.0,0.00014992,2]
[337246685,1725547847027,-1013.7930547,0.00014993,2]
[337246687,1725547847036,-4597.1801411,0.00014993,2]
[337246689,1725547847047,-10281.2275657,0.00014993,2]
[337246691,1725547847056,-4593.2147662,0.00014993,2]
[337246693,1725547847066,-2000.0,0.00014996,2]
[337246694,1725547847075,-200.0,0.00014996,2]
[337246696,1725547847085,-200.0,0.00014996,2]
[337246698,1725547847095,-500.0,0.00014996,2]
[337246700,1725547847104,-200.0,0.00014996,2]
[337246702,1725547847113,-500.0,0.00014996,2]
[337246704,1725547847123,-505.2624464,0.00014997,2]
[337246706,1725547847132,-502.2778328,0.00014997,2]
[337246708,1725547847143,-505.19054934,0.00014997,2]
[337246710,1725547847152,-512.43888936,0.00014997,2]
[337246712,1725547847162,-500.0,0.00014997,2]
[337246714,1725547847176,-500.0,0.00014997,2]
[337246716,1725547847186,-509.4413326,0.00014997,2]
[337246718,1725547847196,-577.89941861,0.00014997,2]
[337246720,1725547847206,-504.26380991,0.00014997,2]
[337246722,1725547847216,-585.00552819,0.00014997,2]
[337246724,1725547847226,-500.0,0.00014997,2]
[337246726,1725547847235,-507.10332045,0.00014997,2]
[337246728,1725547847245,-1338.42,0.00014997,2]
[337246730,1725547847254,-1945.44,0.00014997,2]
[337246731,1725547847264,-1144.0,0.00014998,2]
[337246733,1725547847275,-13463.0,0.00014998,2]
[337246734,1725547847284,-5854.0,0.00014998,2]
[337246736,1725547847294,-289.0,0.00014998,2]
[337246738,1725547847304,-500.0,0.00014998,2]
[337246740,1725547847314,-1004.21,0.00014998,2]
[337246741,1725547847324,-1004.21,0.00014998,2]
[337246742,1725547847333,-1004.21,0.00014998,2]
[337246743,1725547847343,-500.0,0.00014998,2]
[337246744,1725547847352,-500.0,0.00014998,2]
[337246745,1725547847362,-1338.42,0.00014998,2]
[337246746,1725547847371,-840.67461704,0.00014998,2]
[337246747,1725547847383,-497.74538296,0.00014998,2]
[337246748,1725547847393,-1338.42,0.00014998,2]
[337246749,1725547847402,-70.02062651,0.00014998,2]
[337246750,1725547847417,-431.2367175,0.00014998,2]
[337246757,1725548000848,243.67,0.0001211,2]
[337246759,1725548191049,163.6,0.00013925,2]
[337246760,1725548210849,201.24993196,0.00013907,2]
[337246763,1725548347556,1952.95,0.00013911,2]
[337246764,1725548445528,184.45,0.00013699,2]
[337246765,1725548466113,250.0,0.00013921,2]
[337246767,1725548529297,250.0,0.00013921,2]
[337246770,1725548556695,550.0,0.00011,2]
[337246771,1725548557834,600.0,0.00013,2]
[337246772,1725548596926,590.08,0.00013858,2]
[337246773,1725548601094,281.47,0.00011941,2]
[337246774,1725548701366,269.15,0.00013825,2]
[337246775,1725548705321,150.0,0.00013488,2]
[337246776,1725548705679,150.0,0.00013541,2]
[337246777,1725548706004,150.0,0.00013595,2]
[337246778,1725548706321,150.0,0.00013648,2]
[337246779,1725548706660,150.0,0.00013702,2]
[337246780,1725548706974,150.0,0.00013755,2]
[337246781,1725548707309,150.0,0.00013809,2]
[337246782,1725548707610,150.0,0.00013862,2]
[337246783,1725548708511,150.0,0.00013916,2]
[337246784,1725548713055,213.71463697,0.000111,2]
[337246785,1725548714415,1852.42,0.00013828,2]
[337246786,1725548718520,150.0,0.00013488,2]
[337246787,1725548718841,150.0,0.00013675,2]
[337246788,1725548719180,150.0,0.00013862,2]
[337246789,1725548728171,150.0,0.00013488,2]
[337246790,1725548728927,150.0,0.00013509,2]
[337246791,1725548729274,150.0,0.00013531,2]
[337246792,1725548729589,150.0,0.00013553,2]
[337246793,1725548729939,150.0,0.00013575,2]
[337246794,1725548730277,150.0,0.00013596,2]